Cogmind - Beta 16.1 @@@ ROGUE MODE // 2026.02.23 @ 01:50:52 // Winter2019/RPGLIKE Player: badjay Result: Destroyed by Y-54 Guardian with Flak Gun Performance ------------- Evolutions (3) 1500 Regions Visited (4) 800 Robots Destroyed (83) 415 Value Destroyed (2309) 2309 Prototype IDs (14) 280 Alien Tech Used (0) 0 Bonus (-29) -29 TOTAL SCORE: 5275 Bonus ------- High Alert Combat Kills 15 Friendly Fire -44 Cogmind --------- Core Integrity 0/600 Matter 300/300 Energy 160/160 System Corruption 0% Temperature Cool (12) Movement Flying (34) Location -7/Factory Parts ------- > --- POWER (1) -------- Light Nuclear Core > --- PROPULSION (3) --- Xenon Bombardment Thruster Xenon Bombardment Thruster Xenon Bombardment Thruster > --- UTILITY (5) ------ Improved Terrain Scanner Seismic Detector Melee Analysis Suite Target Analyzer Core Analyzer > --- WEAPON (4) ------- Mining Claw Katana Scythe Scythe > --- INVENTORY (1) ---- (None) Peak State ------------ > --- POWER ------------ Light Nuclear Core > --- PROPULSION ------- Xenon Bombardment Thruster Xenon Bombardment Thruster Xenon Bombardment Thruster > --- UTILITY ---------- Improved Terrain Scanner Seismic Detector Melee Analysis Suite Target Analyzer Core Analyzer > --- WEAPON ----------- Mining Claw Katana Scythe Scythe > --- INVENTORY -------- (None) [Rating: 39] Favorites ----------- Power Nuclear Core Engine Light Deuterium Engine Power Core Nuclear Core Propulsion Xenon Bombardment Thruster Flight Unit Xenon Bombardment Thruster Utility Improved Terrain Scanner Device Improved Terrain Scanner Processor Melee Analysis Suite Weapon Scythe Energy Gun Medium Laser Ballistic Gun Improved Assault Rifle Launcher Rocket Launcher Impact Weapon Heavy Mace Slashing Weapon Scythe Build | -11 -10 -10 -8 -7 ------- Run | Yrd Mat Sub Mat Fac Slots Evolved 9 | . . 2 5 2 Power . | . . . . . Propulsion 2 | . . 1 1 . Utility 4 | . . . 3 1 Weapon 3 | . . 1 1 1 Parts Attached 29 | 1 4 5 13 6 Power 5 | . . 1 2 2 Engine 2 | . . 1 . 1 Core 3 | . . . 2 1 Reactor . | . . . . . Propulsion 7 | . 1 1 2 3 Treads . | . . . . . Leg . | . . . . . Wheel . | . . . . . Hover . | . . . . . Flight 7 | . 1 1 2 3 Utility 6 | . 1 . 4 1 Device 2 | . . . 1 1 Storage . | . . . . . Processor 4 | . 1 . 3 . Hackware . | . . . . . Protection . | . . . . . Artifact . | . . . . . Weapon 11 | 1 2 3 5 . Energy Gun 2 | 1 . 1 . . Energy Cannon . | . . . . . Ballistic Gun 3 | . 1 2 . . Ballistic Cannon . | . . . . . Launcher 1 | . 1 . . . Special Weapon . | . . . . . Impact Weapon 1 | . . . 1 . Slashing Weapon 4 | . . . 4 . Piercing Weapon . | . . . . . Special Melee Weapon . | . . . . . Unidentified Prototypes . | . . . . . Parts Lost 3 | . . 2 . 1 Power 1 | . . . . 1 Propulsion 1 | . . 1 . . Utility . | . . . . . Weapon 1 | . . 1 . . Highest Loss Streak 1 | . . 1 . 1 To Critical Strikes . | . . . . . Average Backups . | . . . . . Power . | . . . . . Propulsion . | . . . . . Utility . | . . . . . Weapon . | . . . . . Tool/Special . | . . . . . Unused Backups . | . . . . . Power . | . . . . . Propulsion . | . . . . . Utility . | . . . . . Weapon . | . . . . . Tool/Special . | . . . . . Average Slot Usage (%) 87 | . 70 75 92 99 Engine 1 | . . . . 3 Core 5 | . . . 11 4 Flight 24 | . 23 27 25 24 Device 8 | . . . 11 15 Processor 21 | . 22 22 17 24 Energy Gun 1 | . 3 6 . . Ballistic Gun 5 | . 14 17 . . Launcher 1 | . 7 . . . Slashing Weapon 16 | . . . 24 25 Peak Build Rating 39 | 1 5 10 31 39 Average Rating 20 | . 4 5 22 37 On Entrance 8 | . 1 5 5 31 Avg Prop Armor Cover (%) . | . . . . . Naked Turns . | . . . . . Heaviest Build 15 | 2 4 8 15 15 Greatest Support 26 | 3 4 8 20 26 Greatest Overweight (x) . | . . . . . Average Overweight (x) . | . . . . . Largest Inventory Capacity 1 | . . . 1 1 Average Capacity . | . . . . 1 Most Carried 1 | . . . 1 1 Average Carried . | . . . . . Final Capacity 1 | . . . 1 1 Final Carried 1 | . . . 1 . Class Distribution -------------------- 44% | Hacker-Mutant 35% | Hacker-Gladiator 17% | Hacker-Sprinter Dominant Class ---------------- Hacker-Mutant | -10/Materials Hacker-Mutant | -10/Subcaves Hacker-Sprinter | -8/Materials Hacker-Gladiator | -7/Factory Resources | -11 -10 -10 -8 -7 ----------- Run | Yrd Mat Sub Mat Fac Matter Collected 886 | 210 335 101 150 90 Remotely . | . . . . . Salvage Created 2833 | . 371 67 1725 670 Parts 170 | . 31 6 89 44 Haulers Intercepted 10 | . 2 . 4 4 Recyclers Shooed 2 | . 2 . . . Parts Field Recycled . | . . . . . Retrieved Matter . | . . . . . Parts Self-Destructed 13 | . . 13 . . Prevented . | . . . . . Parts Restored . | . . . . . Kills | -11 -10 -10 -8 -7 ------- Run | Yrd Mat Sub Mat Fac Combat Hostiles Destroyed 54 | . 9 4 30 11 Melee 41 | . . . 30 11 Guns 5 | . 2 3 . . AOE 7 | . 7 . . . Classes Destroyed 12 | . 6 2 4 . Worker 3 | . 3 . . . Hauler 10 | . 2 . 4 4 Recycler 2 | . 2 . . . Operator 1 | . . . 1 . Watcher 13 | . 3 . 5 5 Swarmer 16 | . 3 3 7 3 Grunt 22 | . 6 . 11 5 Brawler 2 | . . . 2 . Sentry 11 | . . . 8 3 Hunter 2 | . . . 2 . Subdweller 1 | . . 1 . . Scientist 1 | . . 1 . . Best Kill Streak 14 | . 8 3 14 4 Combat Bots Only 6 | . 6 3 6 4 Max Kills in Single Turn 2 | . 2 1 1 1 Gunslinging . | . . . . . Exploded 2 | . 2 . . . Melee 1 | . . . 1 1 Uniques/NPCs Destroyed . | . . . . . Combat | -11 -10 -10 -8 -7 -------- Run | Yrd Mat Sub Mat Fac Hostile Shots Fired 300 | . 16 32 104 148 Missed 126 | . 7 8 46 65 Hits 174 | . 9 24 58 83 Melee 3 | . . . 3 . Projectile 171 | . 9 24 55 83 Critical Strikes 7 | . 1 1 4 1 Damage Taken 2287 | . 126 474 782 905 Core 1923 | . 107 403 674 739 Absorbed by Shields . | . . . . . Redirected to Core 1235 | . 64 253 375 543 Core Remaining (%) 76 | 100 . 65 63 . Volleys Fired 65 | . 45 20 . . Largest 1 | . 1 1 . . Hottest 60 | . 33 60 . . Shots Fired 65 | . 45 20 . . Gun 45 | . 25 20 . . Cannon . | . . . . . Launcher 20 | . 20 . . . Special . | . . . . . Kinetic 37 | . 25 12 . . Thermal . | . . . . . Explosive 20 | . 20 . . . Electromagnetic 8 | . . 8 . . Robot Hit Streak 21 | . 15 21 . . Robot Miss Streak 3 | . 3 2 . . Penetration Max . | . . . . . Secondary Targets . | . . . . . Shots Hit Robots 173 | . 30 15 79 49 Core Hits 95 | . 28 5 38 24 Critical Kills . | . . . . . Critical Parts Destroyed . | . . . . . Critical Strikes 14 | . . . 10 4 Sever 14 | . . . 10 4 Melee Attacks 159 | . . . 97 62 Impact 2 | . . . 2 . Slashing 157 | . . . 95 62 Piercing . | . . . . . Sneak Attacks 13 | . . . 8 5 Combat Hostiles 2 | . . . 2 . Follow-up Attacks 11 | . . . 3 8 Damage Inflicted 6559 | . 1363 247 3079 1870 Guns 569 | . 322 247 . . Cannons . | . . . . . Explosions 1041 | . 1041 . . . Melee 4949 | . . . 3079 1870 Ramming . | . . . . . Kinetic 462 | . 322 140 . . Thermal . | . . . . . Explosive 1041 | . 1041 . . . Electromagnetic 107 | . . 107 . . Impact 94 | . . . 94 . Slashing 4855 | . . . 2985 1870 Piercing . | . . . . . Highest Corruption . | . . . . . Average Corruption . | . . . . . Corruption Purged . | . . . . . Corruption Blocked . | . . . . . Overload Shots . | . . . . . Overflow Damage 229 | . 18 . 175 36 Projectiles . | . . . . . Explosions 18 | . 18 . . . Melee 211 | . . . 175 36 Knockbacks . | . . . . . Impact . | . . . . . Kinetic . | . . . . . Secondary . | . . . . . Self-Inflicted Damage 20 | . 20 . . . Shots 1 | . 1 . . . Rammed . | . . . . . Targets Rammed . | . . . . . Kicked . | . . . . . Crushed . | . . . . . Highest Temperature 266 | . 19 266 17 11 Average Temperature 37 | . 8 149 7 5 Received Heat Transfer 999 | . 72 339 351 237 Siege Activations . | . . . . . Martial Activations . | . . . . . Shielding Activations . | . . . . . Robots Disrupted . | . . . . . Combat Hostiles . | . . . . . Robots Corrupted 1 | . . 1 . . Combat Hostiles 1 | . . 1 . . Parts Fried 2 | . . 2 . . Impact Corruptions 2 | . . . 2 . Robots Melted . | . . . . . Combat Hostiles . | . . . . . Parts Melted . | . . . . . Heat Transferred . | . . . . . Parts Sabotaged . | . . . . . Parts Stolen . | . . . . . Parts Stripped . | . . . . . Power Chain Reactions . | . . . . . Alert | -11 -10 -10 -8 -7 ------- Run | Yrd Mat Sub Mat Fac Maximum Alert Level 2 | . 1 . 2 1 Low Security (%) 55 | 100 92 . 38 45 Level 1 42 | . 7 . 57 54 Level 2 1 | . . . 3 . Level 3 . | . . . . . Level 4 . | . . . . . Level 5 . | . . . . . High Security . | . . . . . Max Security . | . . . . . Peak Influence 446 | . 238 . 446 313 Initial 142 | . . . 5 142 Average 171 | . 67 . 216 206 Influence Increases 2075 | . 417 70 1105 483 Destroy 0b10 Robot/C 1060 | . 180 60 600 220 Destroy 0b10 Robot/NC 145 | . 50 . 50 45 Destroy Leader 326 | . 50 10 188 78 Successful Hack 76 | . 6 . 26 44 Disable Machine 30 | . 30 . . . Destroy Structure 93 | . 86 . 1 6 Partial Spotted 45 | . 15 . 15 15 Lose Combat Pursuer 300 | . . . 225 75 Influence Decreases 1778 | . 377 100 802 499 Entered New Map 196 | . . 20 5 171 Time Decay 962 | . 227 70 347 318 Lost Part 20 | . . 10 . 10 Purge Threat 600 | . 150 . 450 . Squads Dispatched 8 | . 1 . 4 3 Investigation 3 | . 1 . 2 . Extermination 2 | . . . . 2 Reinforcement 3 | . . . 2 1 Assault . | . . . . . Garrison . | . . . . . Intercept . | . . . . . Searches Triggered . | . . . . . Construction Impeded . | . . . . . Haulers Reinforced 1 | . . . . 1 Active Scanning Responses . | . . . . . Cargo Convoy Interrupts . | . . . . . Stealth | -11 -10 -10 -8 -7 --------- Run | Yrd Mat Sub Mat Fac Distress Signals 4 | . 2 . 2 . Communications Jammed . | . . . . . Distress Signals . | . . . . . Times Spotted 86 | . 12 9 44 21 Peak Tracking Total 7 | . 4 3 7 5 Tactical Retreats 11 | . . 1 7 3 Traps | -11 -10 -10 -8 -7 ------- Run | Yrd Mat Sub Mat Fac Traps Triggered 4 | . 1 1 2 . Indirectly . | . . . . . Trap Hack Attempts . | . . . . . Triggered . | . . . . . Disarmed . | . . . . . Reprogrammed 6 | . 6 . . . Reused . | . . . . . Traps Extracted . | . . . . . Installed . | . . . . . Triggered . | . . . . . Machines | -11 -10 -10 -8 -7 ---------- Run | Yrd Mat Sub Mat Fac Machines Disabled 2 | . 2 . . . Max in Single Turn 1 | . 1 . . . Garrison Access 1 | . . . 1 . Machines Repaired . | . . . . . Machines Dismantled . | . . . . . Machines Sabotaged . | . . . . . Overloaded Fab Kills . | . . . . . Hacking | -11 -10 -10 -8 -7 --------- Run | Yrd Mat Sub Mat Fac Machines Accessed 30 | . 7 . 14 9 Terminals 25 | . 7 . 12 6 Fabricators 1 | . . . . 1 Repair Stations . | . . . . . Recycling Units . | . . . . . Scanalyzers 2 | . . . 1 1 Garrison Access 2 | . . . 1 1 Total Hacks 136 | . 42 . 61 33 Successful 98 | . 31 . 47 20 Failed 36 | . 10 . 13 13 Catastrophic 2 | . . . 1 1 Database Lockouts 2 | . 1 . 1 . Manual 89 | . 28 . 41 20 Terminals 119 | . 42 . 53 24 Fabricators 2 | . . . . 2 Repair Stations . | . . . . . Recycling Units . | . . . . . Scanalyzers 9 | . . . 5 4 Garrison Access 6 | . . . 3 3 Terminal Hacks 36 | . 14 . 18 4 Robot Analysis 1 | . . . . 1 Prototype ID Bank 8 | . 3 . 4 1 Level Access Points 2 | . 1 . 1 . Branch Access Points 2 | . 1 . 1 . Machine Index 1 | . . . 1 . Terminal Index 3 | . 1 . 1 1 Alert Level 5 | . 2 . 3 . Unreport Threat 4 | . 1 . 3 . Locate Traps 1 | . 1 . . . Reprogram Traps 1 | . 1 . . . Hauler Manifests 3 | . 2 . 1 . Registered Components 2 | . . . 1 1 Zone Layout 3 | . 1 . 2 . Fabricator Hacks 1 | . . . . 1 Network Status 1 | . . . . 1 Repair Station Hacks . | . . . . . Recycling Unit Hacks . | . . . . . Scanalyzer 7 | . . . 3 4 Retrieve Study 7 | . . . 3 4 Garrison Access Hacks 1 | . . . 1 . Seal Access 1 | . . . 1 . Unauthorized Hacks 53 | . 17 . 25 11 Terminals 47 | . 17 . 23 7 Track 16 | . 6 . 10 . Assimilate 1 | . . . 1 . Botnet 9 | . 4 . 3 2 Disrupt 2 | . . . 2 . Operators 2 | . 1 . 1 . Skim 17 | . 6 . 6 5 Fabricators 1 | . . . . 1 Haulers 1 | . . . . 1 Repair Stations . | . . . . . Recycling Units . | . . . . . Scanalyzers . | . . . . . Garrison Access 5 | . . . 2 3 Broadcast 1 | . . . . 1 Reprogram 2 | . . . 1 1 Watchers 2 | . . . 1 1 Data Cores Recovered . | . . . . . Used . | . . . . . Hacking Detections 23 | . 6 . 10 7 Full Trace Events . | . . . . . Feedback Events . | . . . . . Feedback Blocked . | . . . . . Robot Schematics Acquired . | . . . . . Robots Built . | . . . . . Authchips . | . . . . . Time . | . . . . . Total Robot Build Rating . | . . . . . Part Schematics Acquired . | . . . . . Parts Built . | . . . . . Authchips . | . . . . . Time . | . . . . . Total Part Build Rating . | . . . . . Part Studies Acquired 7 | . . . 3 4 Parts Repaired . | . . . . . Time . | . . . . . Parts Recycled . | . . . . . Recycled Matter . | . . . . . Retrieved Matter . | . . . . . Retrieved Components . | . . . . . Parts Scanalyzed . | . . . . . Part Schematics Acquired . | . . . . . Parts Damaged . | . . . . . Bothacking | -11 -10 -10 -8 -7 ------------ Run | Yrd Mat Sub Mat Fac Used RIF Installer . | . . . . . Robots Hacked . | . . . . . Non-combat . | . . . . . Combat . | . . . . . Robot Hacks Applied . | . . . . . Relay Couplers Released . | . . . . . Fabnet Peak Effective % . | . . . . . Robots Rewired . | . . . . . Allies Hacked . | . . . . . Hacks Repelled . | . . . . . Allies | -11 -10 -10 -8 -7 -------- Run | Yrd Mat Sub Mat Fac Total Allies 1 | . . . 1 . Largest Group 1 | . . . 1 . Highest-Rated Group 10 | . . . 10 . Highest-Rated Ally 10 | . . . 10 . Total Orders 1 | . . . 1 . STAY 1 | . . . 1 . Ally Attacks . | . . . . . Total Damage . | . . . . . Kills . | . . . . . Allies Corrupted . | . . . . . Allies Melted . | . . . . . Intel | -11 -10 -10 -8 -7 ------- Run | Yrd Mat Sub Mat Fac Active Infowar (turns) 1520 | . . . 805 715 Terrain 1520 | . . . 805 715 Seismic 658 | . . . . 658 Robot Analysis Total 1 | . . . . 1 Derelict Logs Recovered 1 | . . 1 . . Drone Launches . | . . . . . Drone Recoveries . | . . . . . Exploration | -11 -10 -10 -8 -7 ------------- Run | Yrd Mat Sub Mat Fac Turns Passed 2357 | 24 557 233 828 715 Spaces Moved 4322 | 27 1068 393 1456 1378 Core 84 | 27 57 . . . Treads . | . . . . . Legs . | . . . . . Wheels . | . . . . . Hover . | . . . . . Flight 4238 | . 1011 393 1456 1378 Fastest Speed 30 | 50 40 37 30 30 Average Speed 35 | 50 40 38 32 33 Slowest Speed 50 | 50 50 40 40 34 Overloaded Moves . | . . . . . Propulsion Burnouts . | . . . . . Robots Hopped 37 | . 17 . 6 14 Potential Cave-ins 1 | . 1 . . . Cave-ins Triggered . | . . . . . Exploration Rate (%) 47 | 3 98 17 82 39 Regions Visited 4 Branch Regions 1 Pre-discovered Areas 2 | . . . 2 . Known Exits Taken 1 | . . . 1 . Unknown Exits Taken 3 | 1 1 1 . . Scrap Searched 1 | . . 1 . . Spaces Dug 7 | . . . 1 6 Terrain Destroyed 120 | . 113 . 1 6 Melee 7 | . . . 1 6 Projectile . | . . . . . AOE 113 | . 113 . . . Terrain Rammed . | . . . . . Walls Destroyed . | . . . . . Machines Disabled . | . . . . . Actions | -11 -10 -10 -8 -7 --------- Run | Yrd Mat Sub Mat Fac Total 4821 | 36 1127 448 1664 1546 Wait 225 | 9 18 16 81 101 Move 4254 | 26 1038 392 1443 1355 Hop 27 | . 12 . 6 9 Pick Up . | . . . . . Fast Attach 20 | 1 2 5 10 2 Attach 1 | . . . . 1 Detach . | . . . . . Swap 15 | . 2 2 5 6 Drop 13 | . . 4 4 5 Fire 65 | . 45 20 . . Melee 133 | . . . 84 49 Ram . | . . . . . Kick . | . . . . . Crush . | . . . . . Escape Stasis . | . . . . . Rewire . | . . . . . Trap . | . . . . . Miscellaneous 68 | . 10 9 31 18 Route ------- -11/Scrapyard -10/Materials (discovered 5 exits: *Mat x3 / *Min / [*Sub]) -10/Subcaves -8/Materials (discovered 3 exits: *Fac x3) -7/Factory (discovered 8 exits: *Fac x4 / *Sto x2 / *Low x2) History --------- Turn | Location | Event 4 | -11/Scrapyard | Discovered new exit (range 15) 25 | -11/Scrapyard | Entered Materials 76 | -10/Materials | Identified exit to Mines 231 | -10/Materials | Discovered new exit (range 6) 260 | -10/Materials | Discovered new exit (range 7) 299 | -10/Materials | Central database locked down 299 | -10/Materials | Identified exit to Materials 363 | -10/Materials | Build established: Hacker-Mutant 373 | -10/Materials | Learned Storage non-interactive machine intel 436 | -10/Materials | Learned Storage trap positions 489 | -10/Materials | Learned Storage stockpile data 580 | -10/Materials | Discovered new exit (range 5) 582 | -10/Materials | Entered Subcaves 583 | -10/Subcaves | Approached by a straggling Scientist 584 | -10/Subcaves | Reached level 2 605 | -10/Subcaves | Learned Materials garrison access intel 742 | -10/Subcaves | Upgraded with Propulsion slot (x1) 756 | -10/Subcaves | Upgraded with Weapon slot (x1) 802 | -10/Subcaves | Discovered new exit (range 6) 815 | -10/Subcaves | Entered Materials 816 | -8/Materials | Loaded intel: 1 garrison access location 817 | -8/Materials | Reached level 3 859 | -8/Materials | Central database locked down 888 | -8/Materials | Core integrity fell below 50% 919 | -8/Materials | Reached level 4 963 | -8/Materials | Upgraded with Utility slot (x1) 1090 | -8/Materials | Reached level 5 1106 | -8/Materials | Upgraded with Weapon slot (x1) 1110 | -8/Materials | Upgraded with Utility slot (x1) 1141 | -8/Materials | Identified exit to Factory 1302 | -8/Materials | Learned Factory stockpile data 1336 | -8/Materials | Learned Factory repair station intel 1360 | -8/Materials | Learned location of Zion (-6) 1375 | -8/Materials | Learned Factory trap positions 1397 | -8/Materials | Learned location of Recycling (-7) 1425 | -8/Materials | Learned location of 1 exit from Storage 1460 | -8/Materials | Reached level 6 1463 | -8/Materials | Upgraded with Propulsion slot (x1) 1463 | -8/Materials | Upgraded with Utility slot (x1) 1642 | -8/Materials | Build established: Hacker-Sprinter 1643 | -8/Materials | Entered Factory 1644 | -7/Factory | Identified exit to Factory 1644 | -7/Factory | Identified exit to Storage 1645 | -7/Factory | Loaded intel: 97 trap records 1645 | -7/Factory | Reached level 7 1647 | -7/Factory | Loaded intel: 6 repair station locations 1697 | -7/Factory | Upgraded with Utility slot (x1) 1801 | -7/Factory | Core integrity fell below 50% 1957 | -7/Factory | Discovered new exit (range 13) 1984 | -7/Factory | Reached level 8 1992 | -7/Factory | Core integrity fell below 20% 2024 | -7/Factory | Build established: Hacker-Gladiator 2156 | -7/Factory | Watched by a mysterious "MATRIX" hacker. 2283 | -7/Factory | Upgraded with Weapon slot (x1) 2308 | -7/Factory | Identified exit to Lower Caves 2358 | -7/Factory | Destroyed by Y-54 Guardian with Flak Gun Last Messages --------------- Downloading performance data... Effective improvements: +1 supply >>Study(Mining Claw) Identified Mining Claw... Downloading performance data... Effective improvements: +10% accuracy >>Study(Scythe) Identified Scythe... Downloading performance data... Effective improvements: +10% accuracy 02283_ Upgraded: Weapon Slot (+1) 02303_ Sneak attack on A-02 Transporter. 02303_ A-02 Transporter destroyed. 02306_ Acquired 10 matter. 02308_ >> SKIM: Loading 1 Factory exit... 02314_ K-01 Serf cleans the Pressure Siphon. Map ----- +----------------------------------------------------+ | ??????????????????????????????????????? #????"???? | | ???????????????????????????????????????????#?""??? | | ?????????????????????????????????????????##??? ??? | | ????????????????????????????????????????????????? | | ?????????????????????????????????????????#???#??## | | ??????????????????????????????????????????#####?## | | ????????????????????????????????????????#? ** | | ?????????????????????????????????????????? */ | | ?????????????????????????????????????????# | | ????????????????????????? ??????????????? ? | | ?????????????????????? ?????? ???????????????""" | | ???????????????????? ??? ????? ? ????????? | | ??????????????????????? ? ? #?##+??#????????###### | | ???????????????? ??#?? ? ? ? ??????????#?##??# | | ????????????????? ???! ? ??? ?? ?#?????####### | | ?????????????? ?? ???? ? ? #?? ???? ? ??? | | ????????????? ?# ? ?? +? ?" ??? ??? | | ??????????????? ? ?# ? ? ? #?? ? ?? ?? | | ???????????? ??? ??? # ? ?#??????###### | | ??????????????? ?#? #??? ???#? ? ???? ?? | | ??????????? ??? ?# """""" #?#???### """?? ??"?" | | ??????????????####?# """""" ###? #????"?"?????""? | | ?????????????##???## """""" #?# #?# ??" ???? ? | | ????????????? ???### """""" ### ##??? ??? ? | | ??????????? ? ?## ### ### ? ?? ? | | ?????????? ? ? ??### @ # ###########+## | | ??????????????? #?######Y### | | ???????????? ?? #??##?# | | ??????????? ? ??##??## | | ???????????? ? ? ##?#### | | ???????????###?###?###### ### | | ?? ??????? #??#######?## ### ######### | | ?????????"""##??#?#?###?# #?############?#### | | ?????????"""?# ??? ?## #?#??##?####?###### | | ??????????R"?? ??? ???### ##?#####?#?######## | | ?????????"""???# ?""" ??# ########?########## | | ??????????? ? + ?""" ### ##?################ | | ????????????#?^# "????## ###?########?###### | | ?????????? ????#?? ? ??# ##?###?############# # | | ?????????????# ?#?#######+#######?#####?###### # | | ?????????????? ?### ##?? ###### [# | | ?????????????????## """"""""" ### """ + !%+ | | ????????????#? ##?# #?? ""? #### =# | | ??????????##?? ???# """"""""" ### ?""" #### # | | ???????????### ??## ##? #### # | | #??????????# ########+######## ?### # | | #?#????###?# ### ##+######## # | | ?? ?? > # | | ? # ### ## # | | "" ??"" # ########/#####+### """ | +----------------------------------------------------+ Best States ------------- Heat Dissipation 25 Energy Generation 15 Energy Capacity 240 Matter Stores 300 Matter Capacity 300 Sight Range 16 Terrain Scan Range 16 Terrain Scan Density 410 Evasion (%) 64 Targeting Accuracy 5 Melee Accuracy 5 Target Analysis 5 Core Analysis 6 Offensive Hacking 15 Defensive Hacking 15 Item Schematics ----------------- None Robot Schematics ------------------ None Fabricated ------------ Nothing Repaired ---------- Nothing Studied --------- Cesium-ion Thruster | -8/Materials | Hacked Flight Unit | -8/Materials | Hacked Katana | -8/Materials | Hacked Xenon Bombardment Thruster | -7/Factory | Hacked Lgt. Nuclear Core | -7/Factory | Hacked Mining Claw | -7/Factory | Hacked Scythe | -7/Factory | Hacked Alien Tech Used ----------------- None Achievements -------------- None Challenges ------------ None RPGLIKE | -11 -10 -10 -8 -7 --------- Run | Yrd Mat Sub Mat Fac Levels Raised 7 | . . 1 4 2 XP Earned 14172 | 3000 1250 1350 5452 3120 XP Spent 12390 | . 2700 1000 6190 2500 Upgrades 25 | . 6 2 15 2 Propulsion Slot 2 | . . 1 1 . Utility Slot 4 | . . . 3 1 Weapon Slot 3 | . . 1 1 1 Mass Support 1 | . . . 1 . Inventory Capacity 1 | . . . 1 . Terrain Scan Density 4 | . . . 4 . Melee Accuracy 4 | . . . 4 . Hack Attack % 3 | . 3 . . . Hack Defense % 3 | . 3 . . . Protomatter Created 602 | . 76 47 263 216 Integrity Restored 1336 | . 120 193 666 357 Core 1323 | . 107 193 666 357 Parts 13 | . 13 . . . Protomatter Decayed 201 | . 18 124 7 52 Game ------ Seed DisassembledRemoteCanceller Manual? 0 Play Time 00:48:23 Cumulative 199.6 hours Start 2026.02.23 @ 01:12:38 End 2026.02.23 @ 01:50:52 Sessions 1 Manual Loads 0 Difficulty Rogue Special Mode Winter2019/RPGLIKE Game No. 203 Rogue 203 Adventurer 0 Explorer 0 Win Type - Total 14 Types 11/0/1/1/0/0/1/0/0/0 Lore% 59 Gallery% 57 Achievement% 49 Wizard Run 0 Options --------- Layout 2 ASCII 0 Keyboard 0 Movement Numpad Keybinds 0 Fullscreen 1 Font 24/Smallcaps Map View 50x44 Zoom Use 0% Tactical HUD 1 Map Filters NONE Filters NONE Steam 1 RUN: c555d776-c4b0-40eb-be91-34abcdc3d6bc